bitfinex/quotes_SOLUSD_20250721
["timestamp","ask_amount","ask_price","bid_price","bid_amount"]
[1753127556323,10.80230198,193.06,193.05,37.84]
[1753127556519,10.80230198,193.07,193.05,43.01993434]
[1753127556841,10.80230198,193.07,193.05,37.84]
[1753127557437,1.32729946,193.11,193.05,43.01991573]
[1753127557634,10.80230198,193.09,193.05,43.67991573]
[1753127557859,10.80230198,193.09,193.06,0.66]
[1753127558250,10.80230198,193.09,193.07,0.66]
[1753127558454,10.80230198,193.09,193.08,0.66]
[1753127559450,10.80230198,193.11,193.08,0.66]
[1753127559750,10.80230198,193.1,193.09,37.82]
[1753127561125,10.80230198,193.1,193.09,42.9989321]
[1753127561454,10.80230198,193.1,193.09,37.82]
[1753127561753,11.48230198,193.1,193.09,38.1306]
[1753127561923,16.66096588,193.1,193.09,0.3106]
[1753127562427,11.48230198,193.1,193.09,0.3106]
[1753127563037,15.98096588,193.1,193.09,0.3106]
[1753127563329,11.48230198,193.1,193.09,0.3106]
[1753127564955,0.64719892,193.14,193.09,0.3106]
[1753127565135,10.80230198,193.1,193.09,5.48940972]
[1753127565337,10.80230198,193.1,193.09,0.3106]
[1753127565935,16.78468397,193.17,193.12,26.0]
[1753127565936,10.80230198,193.14,193.12,26.0]
[1753127566152,12.12953441,193.13,193.09,0.3106]
[1753127566355,10.80230198,193.1,193.09,0.3106]
[1753127566749,10.80230198,193.11,193.09,0.3106]
[1753127567057,10.80230198,193.1,193.09,0.3106]
[1753127567835,10.80230198,193.1,193.09,5.4895321]
[1753127568059,10.80230198,193.12,193.09,6.1495321]
[1753127568446,10.80230198,193.11,193.09,5.4895321]
[1753127568830,10.80230198,193.13,193.1,0.66]
[1753127569038,6.50351938,193.19,193.11,0.66]
[1753127569354,6.50351938,193.19,193.11,11.46230198]
[1753127569355,10.80230198,193.16,193.11,11.46230198]
[1753127569546,0.06,193.21,193.14,10.80230198]
[1753127569752,10.86230198,193.21,193.15,48.62230198]
[1753127569948,11.4492999,193.2,193.15,38.48]
[1753127570254,10.80230198,193.17,193.15,37.82]
[1753127571253,0.68,193.17,193.15,37.82]
[1753127571468,12.12943389,193.16,193.09,0.66]
[1753127571641,10.80230198,193.12,193.1,37.82]
[1753127572958,10.80230198,193.12,193.11,5.17839573]
[1753127573339,10.80230198,193.14,193.11,5.83839573]
[1753127573537,10.80230198,193.15,193.12,0.66]
[1753127573746,10.80230198,193.15,193.13,0.66]
[1753127574064,10.80230198,193.15,193.11,5.83839573]
[1753127574243,10.80230198,193.14,193.11,5.83839573]
[1753127575050,10.80230198,193.14,193.11,5.17839573]
[1753127575257,10.80230198,193.15,193.11,5.17839573]
[1753127575450,10.80230198,193.15,193.13,5.17785947]
[1753127575749,0.06,193.14,193.13,5.17785947]
[1753127576456,0.06,193.14,193.11,5.17839573]
[1753127576667,0.06,193.14,193.13,0.66]
[1753127576962,0.06,193.14,193.13,37.72285355]
[1753127577273,0.06,193.25,193.13,44.12595355]
[1753127577274,0.70683053,193.25,193.13,44.12595355]
[1753127577438,10.80230198,193.24,193.19,10.80230198]
[1753127577650,0.06,193.25,193.2,38.08010933]
[1753127577941,0.646864,193.24,193.2,37.82]
[1753127578156,10.86230198,193.21,193.2,37.82]
[1753127578947,11.54230198,193.21,193.2,37.82]
[1753127579148,10.86230198,193.21,193.2,37.82]
[1753127580159,10.86230198,193.21,193.2,42.99598343]
[1753127580390,0.06,193.21,193.2,42.99598343]
[1753127580539,11.54230198,193.21,193.19,37.8]
[1753127580742,10.80230198,193.2,193.19,37.8]
[1753127580962,11.48230198,193.2,193.19,37.8]
[1753127581363,10.80230198,193.2,193.19,37.8]
[1753127582161,11.52230198,193.2,193.19,37.8]
[1753127582541,10.80230198,193.2,193.19,37.8]
[1753127582765,10.80230198,193.2,193.19,38.1106]
[1753127583455,10.80230198,193.2,193.19,0.3106]
[1753127583656,0.06,193.21,193.19,6.15685135]
[1753127583963,0.06,193.21,193.2,37.8]
[1753127584145,0.06,193.21,193.2,38.47]
[1753127584743,0.06,193.21,193.2,42.97598343]
[1753127585365,0.06,193.21,193.2,43.64598343]
[1753127586265,0.06,193.21,193.2,37.8]
[1753127586569,10.86230198,193.21,193.2,37.8]
[1753127586759,11.58230198,193.21,193.2,37.8]
[1753127586959,11.58230198,193.21,193.18,37.8]
[1753127587159,10.80230198,193.2,193.18,37.8]
[1753127589976,0.06,193.21,193.18,42.97649561]
[1753127590153,10.86230198,193.21,193.18,37.8]
[1753127590354,10.80230198,193.2,193.18,37.8]
[1753127590879,10.86230198,193.21,193.18,43.64649851]
[1753127591055,10.86230198,193.21,193.18,42.97649851]
[1753127591378,6.80776302,193.21,193.18,42.97649851]
[1753127592374,0.06,193.21,193.19,0.67]
[1753127593081,6.74776302,193.2,193.18,37.8]
[1753127593372,6.80776302,193.21,193.18,42.9764213]
[1753127593686,0.06,193.21,193.18,43.6464213]
[1753127594282,0.06,193.21,193.19,0.67]
[1753127594476,0.06,193.22,193.2,76.59336302]
[1753127594659,0.06,193.25,193.24,49.53244699]
[1753127594873,0.06,193.25,193.24,80.58468397]
[1753127595190,0.06,193.25,193.24,63.8]
[1753127595365,0.06,193.25,193.24,71.21776302]
[1753127595559,0.06,193.25,193.24,88.00244699]
[1753127596072,0.06,193.25,193.24,71.19776302]
[1753127596257,0.06,193.25,193.24,76.37267504]
[1753127596655,0.06,193.25,193.24,37.78]
[1753127597869,0.06,193.25,193.24,43.62491202]
[1753127598068,0.06,193.25,193.24,38.45]
[1753127598269,0.06,193.25,193.24,37.78]
[1753127598780,12.21744859,193.25,193.24,37.78]
[1753127599986,12.21744859,193.25,193.15,16.78468397]
[1753127600203,10.79061806,193.18,193.16,37.78]
[1753127600482,10.79061806,193.17,193.16,37.78]
[1753127600685,10.79061806,193.2,193.16,38.45]
[1753127600859,10.79061806,193.21,193.17,0.67]
[1753127601592,10.79061806,193.21,193.18,37.78]
[1753127601886,10.79061806,193.21,193.19,5.17625135]
[1753127602288,10.79061806,193.21,193.18,42.95645756]
[1753127602583,10.79061806,193.21,193.18,43.62645756]
[1753127603299,5.95472915,193.25,193.19,0.67]
[1753127603300,10.79061806,193.23,193.19,0.67]
[1753127603498,10.79061806,193.23,193.2,38.45]
[1753127603865,10.79061806,193.24,193.2,43.62576637]
[1753127604064,0.06,193.29,193.23,36.79061806]
[1753127604358,0.06,193.29,193.28,10.79061806]
[1753127604660,10.79061806,193.38,193.31,26.0]
[1753127604860,10.79061806,193.38,193.32,49.49979046]
[1753127605077,0.64632885,193.4,193.32,49.49979046]
[1753127605382,10.99061806,193.41,193.35,36.79061806]
[1753127605576,10.79061806,193.4,193.36,37.78]
[1753127605786,10.79061806,193.37,193.36,26.0]
[1753127605969,1.36636227,193.39,193.36,37.78]
[1753127606169,10.79061806,193.38,193.36,37.78]
[1753127606362,10.79061806,193.39,193.36,37.78]
[1753127606567,0.2,193.41,193.36,37.78]
[1753127606568,10.79061806,193.38,193.36,37.78]
[1753127608381,12.15704718,193.37,193.36,37.78]
[1753127608773,12.15704718,193.37,193.32,26.0]
[1753127608987,10.79061806,193.33,193.32,26.0]
[1753127609281,10.79061806,193.35,193.32,63.76]
[1753127609666,0.2,193.41,193.33,11.46061806]
[1753127609874,10.79061806,193.39,193.34,5.17223544]
[1753127610081,10.79061806,193.39,193.35,38.43]
[1753127610581,10.79061806,193.39,193.35,37.76]
[1753127610785,0.2,193.41,193.36,0.67]
[1753127610979,0.2,193.41,193.4,26.0]
[1753127611180,0.2,193.41,193.4,64.41]
[1753127611682,0.2,193.41,193.4,75.20061806]
[1753127611985,0.2,193.41,193.4,69.58063081]
[1753127612158,0.2,193.41,193.4,37.76]
[1753127614187,0.2,193.41,193.4,71.15593284]
[1753127614389,2.62636112,193.52,193.51,42.78468397]
[1753127614589,0.06,193.59,193.55,26.0]
[1753127614773,0.06,193.59,193.57,10.79061806]
[1753127615085,0.06,193.59,193.58,0.2575692]
[1753127615267,0.06,193.59,193.58,28.48287123]
[1753127615887,0.06,193.59,193.58,53.83287123]
[1753127616106,0.06,193.61,193.59,16.78468397]
[1753127616265,0.06,193.61,193.6,48.80805384]
[1753127616597,0.06,193.61,193.6,49.45805384]
[1753127618178,0.06,193.61,193.6,54.62334309]
[1753127618391,0.06,193.61,193.6,0.65]
[1753127618574,0.06,193.61,193.6,65.96530203]
[1753127619480,0.06,193.61,193.6,71.13059128]
[1753127619688,0.06,193.61,193.6,71.11059128]
[1753127619872,10.85061806,193.61,193.55,0.65]
[1753127620203,10.85061806,193.61,193.56,37.72]
[1753127620407,10.85061806,193.61,193.56,10.79061806]
[1753127620592,10.85061806,193.61,193.6,26.0]
[1753127620787,10.85061806,193.61,193.6,63.72]
[1753127621085,10.85061806,193.61,193.6,37.72]
[1753127622217,0.06,193.61,193.6,37.72]
[1753127622588,0.06,193.61,193.6,38.37]
[1753127622890,0.06,193.61,193.6,71.11059128]
[1753127623488,0.06,193.61,193.6,5.16528925]
[1753127623696,0.06,193.61,193.6,63.7]
[1753127624020,0.06,193.61,193.6,65.92530203]
[1753127624607,0.06,193.61,193.57,0.65]
[1753127625016,0.06,193.61,193.6,26.0]
[1753127625226,12.18624586,193.61,193.53,5.81692092]
[1753127625393,10.79061806,193.58,193.54,37.7]
[1753127625587,10.79061806,193.55,193.49,5.16822574]
[1753127625806,0.69,193.57,193.5,37.7]
[1753127626001,10.79061806,193.54,193.5,37.7]
[1753127626213,10.79061806,193.54,193.53,26.0]
[1753127626518,10.79061806,193.54,193.53,63.7]
[1753127626819,5.16715754,193.53,193.43,0.65]
[1753127626995,10.79061806,193.5,193.49,26.0]
[1753127627202,11.48061806,193.5,193.49,37.7]
[1753127627409,10.79061806,193.5,193.49,37.7]
[1753127627796,10.79061806,193.51,193.49,37.7]
[1753127628099,10.79061806,193.5,193.49,37.7]
[1753127628303,10.79061806,193.51,193.49,37.7]
[1753127628520,0.69,193.54,193.52,26.0]
[1753127628698,10.79061806,193.53,193.52,26.0]
[1753127628887,10.79061806,193.53,193.52,63.7]
[1753127629717,0.69,193.57,193.52,63.7]
[1753127630019,0.64572786,193.58,193.52,68.86742455]
[1753127630020,10.79061806,193.55,193.52,68.86742455]
[1753127630194,0.69,193.59,193.52,69.51742455]
[1753127630399,10.79061806,193.55,193.53,37.7]
[1753127631109,10.79061806,193.56,193.55,26.0]
[1753127631290,10.79061806,193.56,193.55,63.7]
[1753127631689,10.79061806,193.57,193.55,63.7]
[1753127632091,11.48061806,193.59,193.55,63.7]
[1753127632402,10.79061806,193.58,193.55,63.7]
[1753127632802,10.79061806,193.56,193.52,26.0]
[1753127633007,10.79061806,193.54,193.53,37.7]
[1753127633216,10.79061806,193.54,193.48,27.57530203]
[1753127633392,10.79061806,193.51,193.46,16.78468397]
[1753127633600,10.79061806,193.5,193.47,37.7]
[1753127634120,10.79061806,193.54,193.48,28.22530203]
[1753127634422,10.79061806,193.55,193.53,26.0]
[1753127634599,10.79061806,193.55,193.54,37.7]
[1753127635895,0.69,193.58,193.57,26.0]
[1753127636096,10.79061806,193.59,193.57,63.7]
[1753127636317,11.48061806,193.59,193.57,63.7]
[1753127636823,10.79061806,193.59,193.57,64.0106]
[1753127637417,10.79061806,193.59,193.57,69.17658898]
[1753127637595,10.79061806,193.59,193.57,64.0106]
[1753127638409,0.06,193.61,193.57,0.3106]
[1753127638410,11.48061806,193.58,193.57,0.3106]
[1753127638721,11.48061806,193.58,193.57,37.9906]
[1753127639022,11.48061806,193.58,193.57,0.3106]
[1753127639396,0.06,193.61,193.58,16.78468397]
[1753127639700,0.06,193.61,193.6,10.79061806]
[1753127639909,0.06,193.61,193.6,27.57530203]
[1753127640103,0.06,193.61,193.6,28.22530203]
[1753127640302,0.06,193.61,193.6,63.68]
[1753127640503,1e-08,193.61,193.6,91.90530203]
[1753127640694,0.06,193.67,193.6,91.90530203]
[1753127640695,0.06,193.7,193.61,15.52]
[1753127640908,0.06,193.7,193.6,65.90530203]
[1753127640909,0.06,193.7,193.68,26.0]
[1753127641109,10.85061806,193.7,193.62,0.65]
[1753127641435,10.79061806,193.65,193.63,37.68]
[1753127641596,10.79061806,193.65,193.63,42.84448897]
[1753127641792,10.79061806,193.67,193.63,42.84448897]
[1753127641995,10.79061806,193.68,193.63,42.84448897]
[1753127642222,10.79061806,193.67,193.63,42.84448897]
[1753127644418,10.79061806,193.68,193.63,42.84448897]
[1753127644596,10.79061806,193.69,193.63,54.32510703]
[1753127645099,10.79061806,193.68,193.63,43.53448897]
[1753127645298,0.06,193.7,193.63,43.53448897]
[1753127645504,10.79061806,193.68,193.63,43.53448897]
[1753127646423,10.85061806,193.7,193.67,26.0]
[1753127646604,0.06,193.7,193.68,37.68]
[1753127647204,0.06,193.7,193.69,11.48061806]
[1753127647420,0.06,193.7,193.69,0.69]
[1753127647617,0.06,193.7,193.69,28.26530203]
[1753127648005,0.06,193.7,193.69,17.47468397]
[1753127648317,0.06,193.7,193.69,5.85288915]
[1753127648521,0.06,193.7,193.69,5.16288915]
[1753127649607,0.06,193.7,193.69,5.85288915]
[1753127650321,11.55061806,193.7,193.58,6.1965]
[1753127650630,10.79061806,193.66,193.62,16.78468397]
[1753127650932,10.79061806,193.63,193.59,5.16555607]
[1753127651115,1.34549444,193.65,193.57,0.69]
[1753127651116,10.79061806,193.62,193.58,5.16578787]
[1753127651434,0.7,193.62,193.59,37.66]
[1753127651622,10.79061806,193.61,193.59,37.66]
[1753127652702,0.64549444,193.65,193.59,68.82538409]
[1753127652906,10.79061806,193.63,193.59,42.82538409]
[1753127653214,10.79061806,193.63,193.59,68.82538409]
[1753127653518,10.79061806,193.62,193.61,26.0]
[1753127654110,0.7,193.63,193.61,26.0]
[1753127654419,0.7,193.63,193.62,37.66]
[1753127654798,0.7,193.66,193.62,37.66]
[1753127655003,0.7,193.65,193.62,37.66]
[1753127655604,10.79061806,193.63,193.62,37.66]
[1753127658627,10.79061806,193.53,193.52,37.66]
[1753127659335,10.79061806,193.54,193.52,42.82742455]
[1753127659717,10.79061806,193.53,193.52,37.66]
[1753127661430,10.79061806,193.53,193.52,42.82742455]
[1753127661619,0.7,193.56,193.52,42.82742455]
[1753127661926,10.79061806,193.53,193.52,37.66]
[1753127662109,10.79061806,193.53,193.52,37.69]
[1753127662722,11.49061806,193.53,193.52,37.69]
[1753127662908,16.6577756,193.53,193.52,0.03]
[1753127663113,17.30367029,193.53,193.52,0.03]
[1753127663408,17.30367029,193.53,193.5,0.03]
[1753127663615,10.79061806,193.51,193.5,0.03]
[1753127663820,11.4365795,193.51,193.5,0.03]
[1753127664118,12.1365795,193.51,193.5,0.03]
[1753127665141,17.30427109,193.51,193.5,0.03]
[1753127667935,30.22350007,193.51,193.46,0.03]
[1753127668110,10.79061806,193.47,193.46,0.03]
[1753127668515,11.49061806,193.47,193.46,0.03]
[1753127668734,16.65937807,193.47,193.46,0.03]
[1753127669140,10.79061806,193.43,193.42,0.03]
[1753127669347,0.6462286,193.43,193.42,0.03]
[1753127669639,5.16876001,193.47,193.42,0.03]
[1753127669640,10.79061806,193.45,193.42,0.03]
[1753127669853,0.7,193.49,193.44,16.78468397]
[1753127670015,10.0,193.6,193.44,16.78468397]
[1753127670016,10.79061806,193.48,193.44,16.78468397]
[1753127670215,0.7,193.51,193.44,16.78468397]
[1753127670428,0.7,193.51,193.44,17.47468397]
[1753127670429,10.79061806,193.48,193.44,17.47468397]
[1753127670837,10.79061806,193.48,193.45,5.16929439]
[1753127671018,10.79061806,193.49,193.45,5.16929439]
[1753127671219,10.79061806,193.48,193.45,5.16929439]
[1753127671639,10.79061806,193.48,193.45,5.88929439]
[1753127672319,10.79061806,193.48,193.45,0.72]
[1753127672936,10.79061806,193.47,193.43,63.66]
[1753127673217,0.64612839,193.46,193.43,37.66]
[1753127673425,10.79061806,193.48,193.43,43.54981575]
[1753127673614,10.79061806,193.45,193.42,0.03]
[1753127673818,10.79061806,193.44,193.43,37.68]
[1753127674425,11.51061806,193.44,193.43,37.68]
[1753127674821,16.68017968,193.44,193.42,0.03]
[1753127675038,12.15684666,193.43,193.42,0.03]
[1753127675546,11.51061806,193.43,193.42,0.03]
[1753127675726,12.15684666,193.43,193.42,0.03]
[1753127676842,5.17009616,193.42,193.37,37.66]
[1753127677043,10.79061806,193.38,193.37,37.66]
[1753127677352,11.51061806,193.38,193.34,0.1]
[1753127677551,10.79061806,193.35,193.34,0.1]
[1753127678332,1.36642912,193.37,193.34,0.1]
[1753127678333,10.79061806,193.36,193.34,0.1]
[1753127678537,1.36629543,193.41,193.34,0.82]
[1753127678728,10.79061806,193.35,193.34,0.1]
[1753127679528,10.79061806,193.38,193.34,5.99212517]
[1753127679738,10.79061806,193.37,193.34,5.99212517]
[1753127679932,10.79061806,193.35,193.34,0.1]
[1753127680349,11.51061806,193.35,193.34,0.1]
[1753127680651,10.79061806,193.35,193.34,0.1]
[1753127680960,10.79061806,193.37,193.34,0.82]
[1753127681251,6.53667692,193.41,193.38,26.0]
[1753127681252,10.79061806,193.41,193.38,26.0]
[1753127681440,10.79061806,193.39,193.34,0.1]
[1753127681643,1.36632885,193.4,193.37,37.68]
[1753127682347,0.72,193.39,193.37,37.68]
[1753127682849,10.79061806,193.38,193.37,37.68]
[1753127683358,16.68181968,193.38,193.34,0.1]
[1753127683563,10.79061806,193.35,193.34,0.1]
[1753127683929,11.51061806,193.35,193.34,0.1]
[1753127684162,22.30123612,193.35,193.32,0.1]
[1753127684331,21.58123612,193.33,193.32,0.1]
[1753127684826,24.83513735,193.33,193.29,0.03]
[1753127685049,10.79061806,193.3,193.29,0.03]
[1753127685533,11.51061806,193.3,193.29,0.03]
[1753127686337,26.0,193.27,193.17,0.1]
[1753127686546,10.79061806,193.18,193.17,0.1]
[1753127687527,5.17553953,193.22,193.17,0.1]
[1753127687770,10.79061806,193.18,193.17,0.1]
[1753127688645,10.79061806,193.2,193.17,5.99678728]
[1753127688845,10.79061806,193.22,193.18,38.42]
[1753127689154,10.79061806,193.2,193.18,43.59634013]
[1753127689350,10.79061806,193.2,193.18,37.7]
[1753127689856,10.79061806,193.21,193.18,37.7]
[1753127690056,10.79061806,193.21,193.18,43.59649185]
[1753127690238,0.646864,193.24,193.18,43.59649185]
[1753127690557,10.79061806,193.22,193.18,43.59649185]
[1753127690753,10.79061806,193.26,193.22,26.0]
[1753127690965,0.64652943,193.34,193.27,26.0]
[1753127691137,10.79061806,193.32,193.28,43.57384105]
[1753127691344,10.79061806,193.32,193.29,0.72]
[1753127691657,10.79061806,193.3,193.23,0.72]
[1753127691849,10.79061806,193.25,193.24,37.7]
[1753127692851,10.79061806,193.26,193.22,5.17544767]
[1753127693052,10.79061806,193.26,193.25,0.03]
[1753127694141,10.79061806,193.26,193.25,37.73]
[1753127694340,10.79061806,193.27,193.25,37.73]
[1753127694656,10.79061806,193.26,193.25,37.73]
[1753127695034,10.79061806,193.26,193.25,0.03]
[1753127695241,10.79061806,193.26,193.25,37.73]
[1753127695842,0.64676359,193.27,193.25,37.73]
[1753127696039,11.51061806,193.26,193.25,0.03]
[1753127696342,26.0,193.24,193.23,0.4615]
[1753127696663,37.43748206,193.24,193.23,0.4615]
[1753127696865,38.15748206,193.24,193.23,0.4615]
[1753127697162,43.33239408,193.24,193.23,0.4615]
[1753127697564,17.33239408,193.24,193.23,0.4615]
[1753127697861,1.366864,193.24,193.23,0.4615]
[1753127698062,10.79061806,193.24,193.23,0.4615]
[1753127699341,11.51061806,193.24,193.23,0.4615]
[1753127699939,10.79061806,193.24,193.23,0.4615]
[1753127700352,10.79061806,193.31,193.26,26.0]
[1753127700541,0.64656287,193.33,193.26,26.0]
[1753127700542,10.79061806,193.29,193.26,26.0]
[1753127700758,10.79061806,193.28,193.26,26.0]
[1753127701144,10.79061806,193.28,193.26,31.17435484]
[1753127701356,6.53926485,193.33,193.26,31.17435484]
[1753127701357,10.79061806,193.27,193.26,26.0]
[1753127701560,5.17247198,193.34,193.26,31.84437648]
[1753127701867,10.79061806,193.27,193.23,9.2493]
[1753127702070,0.64662976,193.31,193.25,37.7]
[1753127702249,1.29656287,193.33,193.25,37.7]
[1753127702451,10.79061806,193.32,193.26,28.24530203]
[1753127702643,10.79061806,193.32,193.27,0.67]
[1753127702843,10.79061806,193.28,193.27,26.0]
[1753127703169,10.79061806,193.28,193.26,37.7]
[1753127703369,10.79061806,193.27,193.26,37.7]
[1753127703746,0.64669667,193.29,193.26,37.7]
[1753127704045,10.79061806,193.27,193.26,37.7]
[1753127704446,5.1734776,193.3,193.26,37.7]
[1753127704645,10.79061806,193.27,193.26,37.7]
[1753127705476,10.79061806,193.28,193.26,42.87437648]
[1753127705774,10.79061806,193.27,193.26,37.7]
[1753127705947,10.79061806,193.27,193.26,42.87437648]
[1753127706148,10.79061806,193.3,193.26,43.54437648]
[1753127706451,10.79061806,193.28,193.26,37.7]
[1753127706657,10.79061806,193.27,193.26,37.7]
[1753127707065,0.64649599,193.35,193.29,26.0]
[1753127707252,0.64649599,193.35,193.3,37.68]
[1753127707448,1.29632885,193.4,193.33,26.0]
[1753127707759,10.79061806,193.42,193.37,16.78468397]
[1753127707950,10.79061806,193.42,193.38,37.68]
[1753127708146,0.64612839,193.46,193.39,16.78468397]
[1753127708344,0.06,193.48,193.43,16.78468397]
[1753127708545,0.06,193.48,193.44,37.68]
[1753127708749,10.79061806,193.46,193.44,37.68]
[1753127708957,0.06,193.48,193.45,0.67]
[1753127709265,0.06,193.48,193.47,5.16876001]
[1753127709478,16.30117012,193.48,193.47,37.68]
[1753127709670,16.30117012,193.48,193.45,37.68]
[1753127709671,16.95117012,193.48,193.45,37.68]
[1753127709968,16.24117012,193.46,193.45,37.68]
[1753127711956,22.06026618,193.46,193.38,16.78468397]
[1753127712271,16.30117012,193.48,193.44,16.78468397]
[1753127712472,0.06,193.48,193.45,54.59117012]
[1753127712779,0.06,193.48,193.46,0.67]
[1753127713579,0.06,193.48,193.47,0.67]
[1753127714172,0.06,193.48,193.47,59.69585409]
[1753127714371,0.06,193.48,193.47,33.69585409]
[1753127714763,0.06,193.48,193.47,34.15735409]
[1753127715164,0.06,193.48,193.47,39.3261141]
[1753127715469,0.06,193.48,193.47,49.08494398]
[1753127715662,0.06,193.48,193.47,39.3261141]
[1753127716366,0.06,193.48,193.47,76.9861141]
[1753127716571,0.06,193.48,193.47,60.74494398]
[1753127716880,0.06,193.48,193.47,76.3161141]
[1753127717073,0.06,193.48,193.47,76.9861141]
[1753127717471,0.06,193.48,193.47,43.29026001]
[1753127717777,0.06,193.48,193.47,38.1215]
[1753127717778,16.95117012,193.48,193.47,38.1215]
[1753127717964,16.95117012,193.48,193.37,42.37119205]
[1753127717965,33.19234024,193.48,193.37,42.37119205]
[1753127718163,16.24117012,193.41,193.38,37.66]
[1753127718786,16.24117012,193.39,193.26,5.17437648]
[1753127718955,16.24117012,193.36,193.3,16.24117012]
[1753127719153,0.64649599,193.35,193.34,26.0]
[1753127719375,6.46708941,193.4,193.34,37.64]
[1753127719575,16.24117012,193.37,193.35,37.64]
[1753127719777,6.46708941,193.4,193.35,37.64]
[1753127719778,16.24117012,193.36,193.35,37.64]
[1753127720151,16.89117012,193.36,193.35,37.64]
[1753127720958,16.89117012,193.36,193.33,37.64]
[1753127721159,16.24117012,193.34,193.33,37.64]
[1753127721560,0.65,193.39,193.33,37.64]
[1753127721789,16.24117012,193.36,193.33,43.48250297]
[1753127723181,16.24117012,193.37,193.33,42.81250297]
[1753127723480,16.24117012,193.38,193.34,0.67]
[1753127723680,16.24117012,193.37,193.33,42.81250297]
[1753127723861,16.24117012,193.37,193.33,43.48250297]
[1753127724059,16.24117012,193.35,193.33,37.64]
[1753127724265,16.24117012,193.34,193.32,26.0]
[1753127724571,16.24117012,193.36,193.33,38.31]
[1753127724774,16.24117012,193.35,193.33,37.64]
[1753127725168,16.24117012,193.34,193.33,37.64]
[1753127725972,16.24117012,193.34,193.33,42.81250297]
[1753127726173,16.24117012,193.36,193.33,42.81250297]
[1753127726584,16.24117012,193.38,193.34,17.45468397]
[1753127726880,16.24117012,193.38,193.35,0.67]
[1753127727086,16.24117012,193.38,193.36,37.66]
[1753127727271,16.24117012,193.38,193.36,42.83155202]
[1753127728379,0.6461952,193.44,193.37,16.91117012]
[1753127728582,0.65,193.46,193.36,42.83155202]
[1753127728583,16.24117012,193.43,193.38,54.57117012]
[1753127728791,16.24117012,193.41,193.38,38.33]
[1753127729292,16.24117012,193.43,193.39,17.45468397]
[1753127729594,16.24117012,193.42,193.4,37.66]
[1753127729772,16.24117012,193.43,193.4,37.66]
[1753127730519,16.24117012,193.43,193.41,37.66]
[1753127730993,16.24117012,193.43,193.37,33.70705409]
[1753127730994,17.53743214,193.42,193.37,0.6812]
[1753127731174,17.53743214,193.42,193.37,38.3212]
[1753127731175,16.24117012,193.38,193.37,38.3212]
[1753127731576,0.71,193.38,193.37,0.6812]
[1753127731776,16.95117012,193.38,193.37,0.6812]
[1753127732373,22.1223357,193.38,193.37,0.6812]
[1753127736279,38.90701967,193.38,193.37,0.6812]
[1753127736497,42.78468397,193.36,193.33,0.03]
[1753127736798,49.26702421,193.34,193.33,0.03]
[1753127737179,49.97702421,193.34,193.33,0.03]
[1753127737582,0.71,193.41,193.33,5.20247042]
[1753127737785,16.24117012,193.41,193.35,16.24117012]
[1753127738007,16.24117012,193.4,193.36,43.49156561]
[1753127738186,16.24117012,193.39,193.36,43.49156561]
[1753127738403,16.24117012,193.39,193.37,0.66]
[1753127739085,16.24117012,193.39,193.37,5.83136112]
[1753127739694,16.24117012,193.39,193.37,0.66]
[1753127739893,16.24117012,193.39,193.36,42.83167526]
[1753127740078,16.24117012,193.39,193.36,43.49167526]
[1753127740587,16.24117012,193.39,193.37,0.66]
[1753127741305,16.24117012,193.38,193.33,5.86226389]
[1753127741474,16.24117012,193.36,193.34,37.64]
[1753127742400,16.24117012,193.36,193.34,38.3]
[1753127742886,0.6462286,193.43,193.35,0.66]
[1753127743197,16.24117012,193.38,193.35,0.66]
[1753127743402,16.24117012,193.36,193.33,0.03]
[1753127743706,16.24117012,193.35,193.33,37.67]
[1753127744906,16.24117012,193.34,193.33,37.67]
[1753127746491,16.88769955,193.34,193.33,37.67]